[Event "Titled Tuesday Blitz February 28 Early 2023"]
[White "Kopczynski, Michal"]
[Black "Golubka, Petro"]
[WhiteFideId "1124200"]
[BlackFideId "14114224"]
[WhiteElo "2212"]
[BlackElo "2404"]
[Result "0-1"]
[Round "10"]
[TimeControl "180+2"]
[Date "2023.02.28"]
[WhiteClock "0:00:19"]
[BlackClock "0:02:11"]

1. e4 {[%clk 0:03:00]}  d6 {[%clk 0:02:58]} 2. d4 {[%clk 0:03:01]}  Nf6 {[%clk 0:02:58]} 3. Nc3 {[%clk 0:03:01]}  g6 {[%clk 0:02:58]} 4. Be3 {[%clk 0:03:01]}  Bg7 {[%clk 0:02:59]} 5. f3 {[%clk 0:03:02]}  a6 {[%clk 0:02:59]} 6. Qd2 {[%clk 0:03:02]}  b5 {[%clk 0:03:00]} 7. O-O-O {[%clk 0:03:03]}  h5 {[%clk 0:02:56]} 8. h4 {[%clk 0:03:03]}  Bb7 {[%clk 0:02:56]} 9. Nh3 {[%clk 0:03:02]}  Nbd7 {[%clk 0:02:55]} 10. Ng5 {[%clk 0:03:03]}  e5 {[%clk 0:02:54]} 11. d5 {[%clk 0:03:02]}  Nh7 {[%clk 0:02:49]} 12. Nxh7 {[%clk 0:02:54]}  Rxh7 {[%clk 0:02:50]} 13. g4 {[%clk 0:02:54]}  hxg4 {[%clk 0:02:49]} 14. fxg4 {[%clk 0:02:54]}  Rxh4 {[%clk 0:02:47]} 15. Bg5 {[%clk 0:02:34]}  Bh6 {[%clk 0:02:44]} 16. Bxd8 {[%clk 0:01:35]}  Bxd2+ {[%clk 0:02:42]} 17. Kxd2 {[%clk 0:01:34]}  Rxh1 {[%clk 0:02:43]} 18. Bxc7 {[%clk 0:01:32]}  b4 {[%clk 0:02:31]} 19. Na4 {[%clk 0:01:16]}  Nf6 {[%clk 0:02:28]} 20. Nb6 {[%clk 0:00:56]}  Nxe4+ {[%clk 0:02:28]} 21. Ke3 {[%clk 0:00:53]}  Ng3 {[%clk 0:02:29]} 22. Nxa8 {[%clk 0:00:43]}  Nxf1+ {[%clk 0:02:27]} 23. Kf2 {[%clk 0:00:40]}  Kd7 {[%clk 0:02:27]} 24. Ba5 {[%clk 0:00:28]}  Bxa8 {[%clk 0:02:25]} 25. Rxf1 {[%clk 0:00:27]}  Rxf1+ {[%clk 0:02:23]} 26. Kxf1 {[%clk 0:00:28]}  Bxd5 {[%clk 0:02:23]} 27. Bxb4 {[%clk 0:00:28]}  g5 {[%clk 0:02:15]} 28. b3 {[%clk 0:00:26]}  Be4 {[%clk 0:02:13]} 29. c4 {[%clk 0:00:23]}  Bb1 {[%clk 0:02:13]} 30. a3 {[%clk 0:00:20]}  Ba2 {[%clk 0:02:12]} 31. c5 {[%clk 0:00:20]}  d5 {[%clk 0:02:13]} 32. Bd2 {[%clk 0:00:20]}  f6 {[%clk 0:02:12]} 33. b4 {[%clk 0:00:20]}  Bc4+ {[%clk 0:02:12]} 34. Kf2 {[%clk 0:00:20]}  d4 {[%clk 0:02:13]} 35. Kf3 {[%clk 0:00:20]}  Bd5+ {[%clk 0:02:13]} 36. Kg3 {[%clk 0:00:21]}  e4 {[%clk 0:02:12]} 37. a4 {[%clk 0:00:19]}  e3 {[%clk 0:02:11]} 38. Be1 {[%clk 0:00:19]}  Kc6 {[%clk 0:02:11]} 0-1


[Site "https://www.chess.com"]

[Event "Titled Tuesday Blitz February 28 Early 2023"]
[White "Aydincelebi, Kagan"]
[Black "Romero Barreto, Jaime Jose"]
[WhiteFideId "6361102"]
[BlackFideId "3902498"]
[WhiteElo "2180"]
[BlackElo "2313"]
[Result "0-1"]
[Round "10"]
[TimeControl "180+2"]
[Date "2023.02.28"]
[WhiteClock "0:00:14"]
[BlackClock "0:00:11"]

1. e4 {[%clk 0:03:00]}  d6 {[%clk 0:02:09]} 2. d4 {[%clk 0:02:59]}  Nf6 {[%clk 0:02:10]} 3. Nc3 {[%clk 0:03:00]}  e5 {[%clk 0:02:09]} 4. Nf3 {[%clk 0:03:00]}  exd4 {[%clk 0:02:06]} 5. Nxd4 {[%clk 0:03:00]}  Be7 {[%clk 0:02:07]} 6. Bf4 {[%clk 0:03:01]}  Nc6 {[%clk 0:02:06]} 7. Qd2 {[%clk 0:03:01]}  Nxd4 {[%clk 0:02:04]} 8. Qxd4 {[%clk 0:03:01]}  O-O {[%clk 0:02:05]} 9. O-O-O {[%clk 0:03:01]}  Be6 {[%clk 0:02:05]} 10. f3 {[%clk 0:03:02]}  a6 {[%clk 0:02:04]} 11. g4 {[%clk 0:03:02]}  b5 {[%clk 0:02:02]} 12. h4 {[%clk 0:03:02]}  c5 {[%clk 0:02:01]} 13. Qd2 {[%clk 0:03:00]}  Qa5 {[%clk 0:02:02]} 14. Kb1 {[%clk 0:02:59]}  b4 {[%clk 0:02:01]} 15. Nd5 {[%clk 0:02:59]}  Nxd5 {[%clk 0:02:00]} 16. exd5 {[%clk 0:03:00]}  Bd7 {[%clk 0:02:00]} 17. h5 {[%clk 0:02:57]}  Bb5 {[%clk 0:02:00]} 18. Re1 {[%clk 0:02:49]}  Rfe8 {[%clk 0:01:57]} 19. g5 {[%clk 0:02:43]}  c4 {[%clk 0:01:56]} 20. g6 {[%clk 0:02:42]}  c3 {[%clk 0:01:49]} 21. gxf7+ {[%clk 0:02:14]}  Kxf7 {[%clk 0:01:47]} 22. Qd1 {[%clk 0:01:35]}  Bf6 {[%clk 0:01:40]} 23. Bh3 {[%clk 0:01:33]}  cxb2 {[%clk 0:01:24]} 24. Be6+ {[%clk 0:01:29]}  Ke7 {[%clk 0:01:15]} 25. Re4 {[%clk 0:00:59]}  Qb6 {[%clk 0:00:25]} 26. Rhe1 {[%clk 0:00:49]}  Kd8 {[%clk 0:00:19]} 27. h6 {[%clk 0:00:41]}  a5 {[%clk 0:00:18]} 28. hxg7 {[%clk 0:00:37]}  Bxg7 {[%clk 0:00:19]} 29. Be3 {[%clk 0:00:27]}  Qa6 {[%clk 0:00:16]} 30. Bd4 {[%clk 0:00:26]}  Bxd4 {[%clk 0:00:14]} 31. Qxd4 {[%clk 0:00:27]}  Kc7 {[%clk 0:00:13]} 32. Rh4 {[%clk 0:00:26]}  Re7 {[%clk 0:00:13]} 33. Kxb2 {[%clk 0:00:24]}  Rae8 {[%clk 0:00:13]} 34. Rc1 {[%clk 0:00:21]}  Qb6 {[%clk 0:00:13]} 35. Qd2 {[%clk 0:00:17]}  Qc5 {[%clk 0:00:14]} 36. c4 {[%clk 0:00:17]}  Bd7 {[%clk 0:00:12]} 37. Bxd7 {[%clk 0:00:17]}  Re2 {[%clk 0:00:11]} 38. Bxe8 {[%clk 0:00:13]}  Rxd2+ {[%clk 0:00:11]} 39. Kb1 {[%clk 0:00:14]}  Qf2 {[%clk 0:00:11]} 40. Rxh7+ {[%clk 0:00:14]}  Kb6 {[%clk 0:00:11]} 0-1


[Site "https://www.chess.com"]

[Event "Titled Tuesday Blitz February 28 Early 2023"]
[White "Belozerov, Andrei"]
[Black "Reprintsev, Alexander"]
[WhiteFideId "4120213"]
[BlackFideId "14100541"]
[WhiteElo "2360"]
[BlackElo "2250"]
[Result "0-1"]
[Round "10"]
[TimeControl "180+2"]
[Date "2023.02.28"]
[WhiteClock "0:00:02"]
[BlackClock "0:00:12"]

1. e4 {[%clk 0:02:59]}  e5 {[%clk 0:02:58]} 2. Nf3 {[%clk 0:02:59]}  Nc6 {[%clk 0:02:58]} 3. Bb5 {[%clk 0:02:59]}  Bc5 {[%clk 0:02:59]} 4. c3 {[%clk 0:02:59]}  f5 {[%clk 0:02:58]} 5. d4 {[%clk 0:02:27]}  fxe4 {[%clk 0:02:56]} 6. Nxe5 {[%clk 0:02:23]}  Nxe5 {[%clk 0:02:53]} 7. O-O {[%clk 0:02:18]}  c6 {[%clk 0:02:48]} 8. Ba4 {[%clk 0:02:14]}  d5 {[%clk 0:02:47]} 9. dxe5 {[%clk 0:02:09]}  Qe7 {[%clk 0:02:37]} 10. c4 {[%clk 0:02:02]}  Qxe5 {[%clk 0:02:30]} 11. cxd5 {[%clk 0:02:02]}  Nf6 {[%clk 0:02:25]} 12. Nc3 {[%clk 0:01:31]}  O-O {[%clk 0:02:23]} 13. g3 {[%clk 0:01:13]}  e3 {[%clk 0:02:19]} 14. Bxe3 {[%clk 0:01:08]}  Bxe3 {[%clk 0:02:19]} 15. fxe3 {[%clk 0:01:08]}  Qxe3+ {[%clk 0:02:15]} 16. Kg2 {[%clk 0:01:03]}  Bg4 {[%clk 0:02:04]} 17. Qe1 {[%clk 0:00:58]}  Qh6 {[%clk 0:02:03]} 18. Kh1 {[%clk 0:00:40]}  Nxd5 {[%clk 0:01:59]} 19. Nxd5 {[%clk 0:00:37]}  cxd5 {[%clk 0:01:47]} 20. Qe5 {[%clk 0:00:31]}  Rad8 {[%clk 0:01:42]} 21. Bb3 {[%clk 0:00:27]}  Qd6 {[%clk 0:01:36]} 22. Rxf8+ {[%clk 0:00:26]}  Kxf8 {[%clk 0:01:34]} 23. Rf1+ {[%clk 0:00:25]}  Kg8 {[%clk 0:01:34]} 24. Qg5 {[%clk 0:00:22]}  Be2 {[%clk 0:01:23]} 25. Rf2 {[%clk 0:00:20]}  Bc4 {[%clk 0:01:23]} 26. Bc2 {[%clk 0:00:19]}  Rf8 {[%clk 0:01:15]} 27. Rxf8+ {[%clk 0:00:16]}  Qxf8 {[%clk 0:01:15]} 28. Bf5 {[%clk 0:00:15]}  Bxa2 {[%clk 0:01:10]} 29. Kg2 {[%clk 0:00:14]}  Qf6 {[%clk 0:01:08]} 30. Qf4 {[%clk 0:00:14]}  Qxb2+ {[%clk 0:01:07]} 31. Kh3 {[%clk 0:00:13]}  g6 {[%clk 0:00:58]} 32. Qb8+ {[%clk 0:00:13]}  Kf7 {[%clk 0:00:57]} 33. Bd7 {[%clk 0:00:10]}  Ke7 {[%clk 0:00:45]} 34. Qe8+ {[%clk 0:00:09]}  Kd6 {[%clk 0:00:45]} 35. Bg4 {[%clk 0:00:09]}  Qb6 {[%clk 0:00:32]} 36. Qf8+ {[%clk 0:00:08]}  Kc6 {[%clk 0:00:29]} 37. Be6 {[%clk 0:00:06]}  Kb5 {[%clk 0:00:27]} 38. Qa3 {[%clk 0:00:06]}  Qxe6+ {[%clk 0:00:27]} 39. Kh4 {[%clk 0:00:06]}  Bc4 {[%clk 0:00:27]} 40. Qb2+ {[%clk 0:00:05]}  Kc6 {[%clk 0:00:27]} 41. Qg7 {[%clk 0:00:04]}  Qe4+ {[%clk 0:00:24]} 42. g4 {[%clk 0:00:04]}  h5 {[%clk 0:00:22]} 43. h3 {[%clk 0:00:04]}  hxg4 {[%clk 0:00:21]} 44. hxg4 {[%clk 0:00:04]}  Qe1+ {[%clk 0:00:19]} 45. Kg5 {[%clk 0:00:04]}  Qe4 {[%clk 0:00:16]} 46. Qf8 {[%clk 0:00:02]}  a5 {[%clk 0:00:15]} 47. Qc8+ {[%clk 0:00:02]}  Kb6 {[%clk 0:00:15]} 48. Qd8+ {[%clk 0:00:02]}  Kb5 {[%clk 0:00:16]} 49. Qd7+ {[%clk 0:00:02]}  Ka6 {[%clk 0:00:14]} 50. Qd6+ {[%clk 0:00:02]}  b6 {[%clk 0:00:15]} 51. Qd7 {[%clk 0:00:02]}  Qe3+ {[%clk 0:00:13]} 52. Kf6 {[%clk 0:00:02]}  Qc5 {[%clk 0:00:12]} 0-1


[Site "https://www.chess.com"]

[Event "Titled Tuesday Blitz February 28 Early 2023"]
[White "Martin Carmona, Gaston Manuel"]
[Black "Alvarez Calzadilla, Jose Avelino"]
[WhiteFideId "22284567"]
[BlackFideId "3526151"]
[WhiteElo "2245"]
[BlackElo "2310"]
[Result "0-1"]
[Round "10"]
[TimeControl "180+2"]
[Date "2023.02.28"]
[WhiteClock "0:00:13"]
[BlackClock "0:00:13"]

1. d4 {[%clk 0:03:00]}  Nf6 {[%clk 0:02:59]} 2. c4 {[%clk 0:03:01]}  c5 {[%clk 0:02:58]} 3. d5 {[%clk 0:03:01]}  b5 {[%clk 0:02:58]} 4. Nf3 {[%clk 0:03:01]}  g6 {[%clk 0:02:56]} 5. Qc2 {[%clk 0:03:00]}  Bg7 {[%clk 0:02:55]} 6. e4 {[%clk 0:03:01]}  O-O {[%clk 0:02:56]} 7. cxb5 {[%clk 0:02:58]}  e6 {[%clk 0:02:55]} 8. Nc3 {[%clk 0:02:50]}  exd5 {[%clk 0:02:53]} 9. exd5 {[%clk 0:02:50]}  a6 {[%clk 0:02:49]} 10. a4 {[%clk 0:02:47]}  Re8+ {[%clk 0:02:45]} 11. Be2 {[%clk 0:02:47]}  axb5 {[%clk 0:02:45]} 12. Nxb5 {[%clk 0:02:47]}  Nxd5 {[%clk 0:02:42]} 13. O-O {[%clk 0:02:46]}  Nc6 {[%clk 0:02:41]} 14. Qxc5 {[%clk 0:02:40]}  Ndb4 {[%clk 0:02:08]} 15. Bg5 {[%clk 0:02:35]}  Bf6 {[%clk 0:02:02]} 16. Bc4 {[%clk 0:02:28]}  Bxg5 {[%clk 0:01:54]} 17. Nxg5 {[%clk 0:02:28]}  Re5 {[%clk 0:01:51]} 18. Bxf7+ {[%clk 0:02:13]}  Kg7 {[%clk 0:01:46]} 19. Qc3 {[%clk 0:02:08]}  Qf6 {[%clk 0:01:17]} 20. f4 {[%clk 0:01:58]}  Re2 {[%clk 0:01:17]} 21. Bc4 {[%clk 0:01:55]}  Qxc3 {[%clk 0:01:08]} 22. bxc3 {[%clk 0:01:55]}  Rc2 {[%clk 0:01:06]} 23. Rfe1 {[%clk 0:01:14]}  Ba6 {[%clk 0:01:01]} 24. Nc7 {[%clk 0:01:08]}  Bxc4 {[%clk 0:00:54]} 25. Nxa8 {[%clk 0:01:07]}  Nd3 {[%clk 0:00:47]} 26. Rf1 {[%clk 0:01:07]}  Bd5 {[%clk 0:00:46]} 27. Nf3 {[%clk 0:01:00]}  Nxf4 {[%clk 0:00:40]} 28. Nb6 {[%clk 0:00:58]}  Rxg2+ {[%clk 0:00:39]} 29. Kh1 {[%clk 0:00:59]}  Be4 {[%clk 0:00:33]} 30. Rae1 {[%clk 0:00:58]}  d5 {[%clk 0:00:31]} 31. c4 {[%clk 0:00:46]}  Rb2 {[%clk 0:00:22]} 32. cxd5 {[%clk 0:00:37]}  Nd4 {[%clk 0:00:16]} 33. Nc4 {[%clk 0:00:25]}  Nxf3 {[%clk 0:00:13]} 34. Rxf3 {[%clk 0:00:12]}  Bxf3+ {[%clk 0:00:13]} 35. Kg1 {[%clk 0:00:13]}  Nh3+ {[%clk 0:00:13]} 0-1


[Site "https://www.chess.com"]

[Event "Titled Tuesday Blitz February 28 Early 2023"]
[White "Kim, Sergey"]
[Black "Yaniuk, Volodymyr"]
[WhiteFideId "13700570"]
[BlackFideId "14133083"]
[WhiteElo "2630"]
[BlackElo "2141"]
[Result "1/2-1/2"]
[Round "10"]
[TimeControl "180+2"]
[Date "2023.02.28"]
[WhiteClock "0:00:02"]
[BlackClock "0:00:03"]

1. d4 {[%clk 0:03:00]}  d5 {[%clk 0:02:59]} 2. c4 {[%clk 0:03:00]}  e6 {[%clk 0:02:59]} 3. Nc3 {[%clk 0:03:00]}  Nf6 {[%clk 0:02:59]} 4. Nf3 {[%clk 0:02:59]}  Bb4 {[%clk 0:02:58]} 5. e3 {[%clk 0:02:59]}  O-O {[%clk 0:02:58]} 6. Bd3 {[%clk 0:02:59]}  b6 {[%clk 0:02:58]} 7. cxd5 {[%clk 0:02:58]}  exd5 {[%clk 0:02:57]} 8. Ne5 {[%clk 0:02:56]}  Bb7 {[%clk 0:02:53]} 9. O-O {[%clk 0:02:54]}  h6 {[%clk 0:02:47]} 10. f4 {[%clk 0:02:50]}  Re8 {[%clk 0:02:46]} 11. Qf3 {[%clk 0:02:47]}  Bxc3 {[%clk 0:02:44]} 12. bxc3 {[%clk 0:02:47]}  Ne4 {[%clk 0:02:44]} 13. Bxe4 {[%clk 0:02:35]}  dxe4 {[%clk 0:02:45]} 14. Qh5 {[%clk 0:02:34]}  Qe7 {[%clk 0:02:11]} 15. Ba3 {[%clk 0:02:31]}  Qf6 {[%clk 0:01:51]} 16. f5 {[%clk 0:02:22]}  Nc6 {[%clk 0:01:43]} 17. Ng4 {[%clk 0:02:12]}  Qg5 {[%clk 0:01:41]} 18. Qxg5 {[%clk 0:01:57]}  hxg5 {[%clk 0:01:41]} 19. f6 {[%clk 0:01:58]}  Bc8 {[%clk 0:01:37]} 20. h3 {[%clk 0:01:54]}  Bxg4 {[%clk 0:01:18]} 21. hxg4 {[%clk 0:01:53]}  Na5 {[%clk 0:01:02]} 22. Be7 {[%clk 0:01:47]}  Nc6 {[%clk 0:00:56]} 23. Ba3 {[%clk 0:01:43]}  Na5 {[%clk 0:00:55]} 24. Rf5 {[%clk 0:01:37]}  gxf6 {[%clk 0:00:55]} 25. Rxf6 {[%clk 0:01:36]}  Re6 {[%clk 0:00:55]} 26. Rf5 {[%clk 0:01:34]}  Rg6 {[%clk 0:00:25]} 27. Be7 {[%clk 0:01:25]}  Nc4 {[%clk 0:00:24]} 28. Bxg5 {[%clk 0:01:21]}  f6 {[%clk 0:00:21]} 29. Bf4 {[%clk 0:01:12]}  c6 {[%clk 0:00:21]} 30. g5 {[%clk 0:00:58]}  fxg5 {[%clk 0:00:19]} 31. Rxg5 {[%clk 0:00:58]}  Rxg5 {[%clk 0:00:18]} 32. Bxg5 {[%clk 0:00:59]}  Rf8 {[%clk 0:00:17]} 33. a4 {[%clk 0:00:54]}  Kg7 {[%clk 0:00:16]} 34. Bf4 {[%clk 0:00:52]}  Kg6 {[%clk 0:00:16]} 35. Kf2 {[%clk 0:00:49]}  Rf5 {[%clk 0:00:16]} 36. g4 {[%clk 0:00:47]}  Ra5 {[%clk 0:00:15]} 37. Kg3 {[%clk 0:00:43]}  b5 {[%clk 0:00:15]} 38. Rh1 {[%clk 0:00:43]}  bxa4 {[%clk 0:00:14]} 39. Rh6+ {[%clk 0:00:43]}  Kf7 {[%clk 0:00:14]} 40. Rh1 {[%clk 0:00:38]}  a3 {[%clk 0:00:14]} 41. Ra1 {[%clk 0:00:38]}  a2 {[%clk 0:00:13]} 42. Bc7 {[%clk 0:00:35]}  Ra3 {[%clk 0:00:11]} 43. Kf4 {[%clk 0:00:35]}  Nd2 {[%clk 0:00:11]} 44. Bd6 {[%clk 0:00:31]}  Ra4 {[%clk 0:00:11]} 45. c4 {[%clk 0:00:26]}  Nxc4 {[%clk 0:00:08]} 46. Be5 {[%clk 0:00:20]}  Nd2 {[%clk 0:00:07]} 47. d5 {[%clk 0:00:20]}  cxd5 {[%clk 0:00:08]} 48. Rh1 {[%clk 0:00:20]}  Nb3 {[%clk 0:00:08]} 49. Rh7+ {[%clk 0:00:19]}  Kg8 {[%clk 0:00:08]} 50. Rg7+ {[%clk 0:00:19]}  Kf8 {[%clk 0:00:08]} 51. Rb7 {[%clk 0:00:18]}  a1=Q {[%clk 0:00:07]} 52. Bxa1 {[%clk 0:00:19]}  Nxa1 {[%clk 0:00:08]} 53. g5 {[%clk 0:00:19]}  Ra6 {[%clk 0:00:07]} 54. Ke5 {[%clk 0:00:18]}  Nc2 {[%clk 0:00:07]} 55. Kxd5 {[%clk 0:00:17]}  Nxe3+ {[%clk 0:00:07]} 56. Kxe4 {[%clk 0:00:18]}  Nc4 {[%clk 0:00:08]} 57. Kd5 {[%clk 0:00:16]}  Nd6 {[%clk 0:00:07]} 58. Rd7 {[%clk 0:00:09]}  Ne8 {[%clk 0:00:07]} 59. Ke5 {[%clk 0:00:07]}  Ra1 {[%clk 0:00:07]} 60. Kf5 {[%clk 0:00:06]}  a5 {[%clk 0:00:07]} 61. Kg6 {[%clk 0:00:05]}  a4 {[%clk 0:00:06]} 62. Rf7+ {[%clk 0:00:04]}  Kg8 {[%clk 0:00:06]} 63. Re7 {[%clk 0:00:01]}  Kf8 {[%clk 0:00:06]} 64. Rf7+ {[%clk 0:00:01]}  Kg8 {[%clk 0:00:06]} 65. Re7 {[%clk 0:00:02]}  Nd6 {[%clk 0:00:05]} 66. Rd7 {[%clk 0:00:02]}  Ne8 {[%clk 0:00:03]} 67. Re7 {[%clk 0:00:02]} 1/2-1/2


[Site "https://www.chess.com"]

[Event "Titled Tuesday Blitz February 28 Early 2023"]
[White "Domingo Nunez, Ruben"]
[Black "Ljukin, Sergei"]
[WhiteFideId "22245570"]
[BlackFideId "14102200"]
[WhiteElo "2404"]
[BlackElo "2312"]
[Result "1-0"]
[Round "10"]
[TimeControl "180+2"]
[Date "2023.02.28"]
[WhiteClock "0:00:04"]
[BlackClock "0:00:02"]

1. b3 {[%clk 0:03:00]}  e5 {[%clk 0:02:57]} 2. Bb2 {[%clk 0:03:01]}  Nc6 {[%clk 0:02:57]} 3. e3 {[%clk 0:03:02]}  Nf6 {[%clk 0:02:56]} 4. Bb5 {[%clk 0:03:01]}  Bd6 {[%clk 0:02:57]} 5. Nf3 {[%clk 0:03:02]}  e4 {[%clk 0:02:56]} 6. Bxc6 {[%clk 0:03:00]}  dxc6 {[%clk 0:02:56]} 7. Nd4 {[%clk 0:03:01]}  a6 {[%clk 0:02:49]} 8. d3 {[%clk 0:03:01]}  c5 {[%clk 0:02:48]} 9. Ne2 {[%clk 0:03:01]}  O-O {[%clk 0:02:32]} 10. Nbc3 {[%clk 0:02:53]}  Bf5 {[%clk 0:02:25]} 11. dxe4 {[%clk 0:02:49]}  Nxe4 {[%clk 0:02:22]} 12. Qd5 {[%clk 0:02:49]}  Qf6 {[%clk 0:01:30]} 13. O-O-O {[%clk 0:02:26]}  Be5 {[%clk 0:01:15]} 14. Nxe4 {[%clk 0:01:48]}  Bxb2+ {[%clk 0:01:14]} 15. Kb1 {[%clk 0:01:48]}  Bxe4 {[%clk 0:01:04]} 16. Qxe4 {[%clk 0:01:49]}  Ba3 {[%clk 0:00:55]} 17. c3 {[%clk 0:01:41]}  b5 {[%clk 0:00:55]} 18. Qf4 {[%clk 0:01:35]}  Qg6+ {[%clk 0:00:47]} 19. e4 {[%clk 0:01:35]}  c4 {[%clk 0:00:46]} 20. Qf5 {[%clk 0:01:08]}  Qb6 {[%clk 0:00:29]} 21. Kc2 {[%clk 0:01:00]}  c5 {[%clk 0:00:19]} 22. Rd7 {[%clk 0:00:48]}  cxb3+ {[%clk 0:00:16]} 23. axb3 {[%clk 0:00:48]}  c4 {[%clk 0:00:17]} 24. bxc4 {[%clk 0:00:33]}  bxc4 {[%clk 0:00:15]} 25. Rb1 {[%clk 0:00:34]}  Qc6 {[%clk 0:00:15]} 26. Rbb7 {[%clk 0:00:34]}  Qa4+ {[%clk 0:00:12]} 27. Kd2 {[%clk 0:00:35]}  Rad8 {[%clk 0:00:10]} 28. Nd4 {[%clk 0:00:29]}  Rxd7 {[%clk 0:00:10]} 29. Rxd7 {[%clk 0:00:30]}  g6 {[%clk 0:00:09]} 30. Qd5 {[%clk 0:00:29]}  Bb2 {[%clk 0:00:08]} 31. Ne6 {[%clk 0:00:18]}  Qa1 {[%clk 0:00:05]} 32. Nxf8 {[%clk 0:00:15]}  Qc1+ {[%clk 0:00:04]} 33. Ke2 {[%clk 0:00:16]}  Qc2+ {[%clk 0:00:03]} 34. Kf3 {[%clk 0:00:13]}  Qxc3+ {[%clk 0:00:03]} 35. Ke2 {[%clk 0:00:06]}  Qc2+ {[%clk 0:00:02]} 36. Kf1 {[%clk 0:00:04]}  Qc1+ {[%clk 0:00:02]} 37. Qd1 {[%clk 0:00:04]} 1-0


[Site "https://www.chess.com"]

[Event "Titled Tuesday Blitz February 28 Early 2023"]
[White "Ezat, Mohamed"]
[Black "Manukyan, Sargis A."]
[WhiteFideId "10600906"]
[BlackFideId "13303970"]
[WhiteElo "2388"]
[BlackElo "2187"]
[Result "1-0"]
[Round "10"]
[TimeControl "180+2"]
[Date "2023.02.28"]
[WhiteClock "0:00:17"]
[BlackClock "0:00:10"]

1. e4 {[%clk 0:03:00]}  c5 {[%clk 0:02:58]} 2. d4 {[%clk 0:03:00]}  cxd4 {[%clk 0:02:58]} 3. c3 {[%clk 0:03:01]}  d3 {[%clk 0:02:58]} 4. Nf3 {[%clk 0:03:00]}  d6 {[%clk 0:02:59]} 5. Bxd3 {[%clk 0:03:00]}  Nc6 {[%clk 0:02:58]} 6. h3 {[%clk 0:02:58]}  Nf6 {[%clk 0:02:58]} 7. O-O {[%clk 0:02:58]}  g6 {[%clk 0:02:59]} 8. Qe2 {[%clk 0:02:58]}  Bg7 {[%clk 0:02:59]} 9. Rd1 {[%clk 0:02:58]}  O-O {[%clk 0:03:00]} 10. e5 {[%clk 0:02:56]}  dxe5 {[%clk 0:02:43]} 11. Bxg6 {[%clk 0:02:41]}  Qc7 {[%clk 0:02:33]} 12. Bc2 {[%clk 0:02:38]}  h6 {[%clk 0:02:24]} 13. Na3 {[%clk 0:02:35]}  Be6 {[%clk 0:02:13]} 14. Bb3 {[%clk 0:02:28]}  Bxb3 {[%clk 0:02:11]} 15. axb3 {[%clk 0:02:28]}  Rfd8 {[%clk 0:02:06]} 16. Be3 {[%clk 0:02:25]}  Rxd1+ {[%clk 0:01:52]} 17. Rxd1 {[%clk 0:02:24]}  Rd8 {[%clk 0:01:53]} 18. b4 {[%clk 0:02:10]}  Rxd1+ {[%clk 0:01:50]} 19. Qxd1 {[%clk 0:02:10]}  e4 {[%clk 0:01:51]} 20. Nd4 {[%clk 0:02:02]}  Nxd4 {[%clk 0:01:48]} 21. Bxd4 {[%clk 0:01:57]}  a6 {[%clk 0:01:43]} 22. Bxf6 {[%clk 0:01:50]}  exf6 {[%clk 0:01:34]} 23. Qd5 {[%clk 0:01:46]}  Qe7 {[%clk 0:01:21]} 24. Nc4 {[%clk 0:01:43]}  Bf8 {[%clk 0:01:13]} 25. Ne3 {[%clk 0:01:42]}  Qe6 {[%clk 0:01:05]} 26. Qxb7 {[%clk 0:01:30]}  f5 {[%clk 0:01:05]} 27. Qd5 {[%clk 0:01:29]}  f4 {[%clk 0:01:01]} 28. Qxe6 {[%clk 0:01:28]}  fxe6 {[%clk 0:01:02]} 29. Nc4 {[%clk 0:01:22]}  Kf7 {[%clk 0:00:52]} 30. Nd2 {[%clk 0:01:16]}  e3 {[%clk 0:00:47]} 31. fxe3 {[%clk 0:01:16]}  fxe3 {[%clk 0:00:48]} 32. Nc4 {[%clk 0:01:16]}  Kf6 {[%clk 0:00:29]} 33. Kf1 {[%clk 0:01:07]}  Kf5 {[%clk 0:00:29]} 34. Ke2 {[%clk 0:01:07]}  Ke4 {[%clk 0:00:29]} 35. Nxe3 {[%clk 0:01:06]}  h5 {[%clk 0:00:26]} 36. Nd1 {[%clk 0:01:01]}  Bh6 {[%clk 0:00:26]} 37. g3 {[%clk 0:00:59]}  Bc1 {[%clk 0:00:25]} 38. Nf2+ {[%clk 0:00:59]}  Kd5 {[%clk 0:00:25]} 39. Nd3 {[%clk 0:00:58]}  Bg5 {[%clk 0:00:25]} 40. b3 {[%clk 0:00:56]}  h4 {[%clk 0:00:23]} 41. gxh4 {[%clk 0:00:55]}  Bxh4 {[%clk 0:00:24]} 42. Nf4+ {[%clk 0:00:50]}  Kd6 {[%clk 0:00:24]} 43. c4 {[%clk 0:00:46]}  e5 {[%clk 0:00:21]} 44. Ng2 {[%clk 0:00:41]}  Bg5 {[%clk 0:00:20]} 45. Kd3 {[%clk 0:00:38]}  Bc1 {[%clk 0:00:18]} 46. Ne3 {[%clk 0:00:34]}  Ba3 {[%clk 0:00:16]} 47. Nc2 {[%clk 0:00:34]}  Bc1 {[%clk 0:00:17]} 48. Ke4 {[%clk 0:00:34]}  Bf4 {[%clk 0:00:17]} 49. h4 {[%clk 0:00:33]}  Bg3 {[%clk 0:00:16]} 50. h5 {[%clk 0:00:33]}  Bf4 {[%clk 0:00:17]} 51. Ne1 {[%clk 0:00:27]}  Ke6 {[%clk 0:00:18]} 52. Nd3 {[%clk 0:00:27]}  Bd2 {[%clk 0:00:17]} 53. Nc5+ {[%clk 0:00:26]}  Kd6 {[%clk 0:00:16]} 54. Nxa6 {[%clk 0:00:27]}  Kc6 {[%clk 0:00:13]} 55. Kxe5 {[%clk 0:00:21]}  Kb6 {[%clk 0:00:13]} 56. b5 {[%clk 0:00:20]}  Ka5 {[%clk 0:00:12]} 57. Kf6 {[%clk 0:00:19]}  Bc3+ {[%clk 0:00:10]} 58. Kg6 {[%clk 0:00:20]}  Bd4 {[%clk 0:00:10]} 59. h6 {[%clk 0:00:20]}  Be5 {[%clk 0:00:10]} 60. h7 {[%clk 0:00:20]}  Kb6 {[%clk 0:00:10]} 61. Kf7 {[%clk 0:00:20]}  Bc3 {[%clk 0:00:10]} 62. Kg8 {[%clk 0:00:20]}  Bd4 {[%clk 0:00:09]} 63. h8=Q {[%clk 0:00:21]}  Ka5 {[%clk 0:00:10]} 64. Qh7 {[%clk 0:00:18]}  Bb6 {[%clk 0:00:09]} 65. Qh6 {[%clk 0:00:17]}  Bd4 {[%clk 0:00:09]} 66. Qd2+ {[%clk 0:00:17]}  Kb6 {[%clk 0:00:09]} 67. Qxd4+ {[%clk 0:00:17]}  Ka5 {[%clk 0:00:10]} 68. Qd8# {[%clk 0:00:17]} 1-0


[Site "https://www.chess.com"]